Cogmind - Beta 14 @@@ ROGUE MODE // 2024.08.15 @ 06:59:21 Player: deadnoob Result: Destroyed by Triborg with Siege Cannon Performance ------------- Evolutions (1) 500 Regions Visited (6) 1200 Robots Destroyed (90) 450 Value Destroyed (2247) 2247 Prototype IDs (13) 260 Alien Tech Used (0) 0 Bonus (287) 287 TOTAL SCORE: 4944 Bonus ------- Follower Combat Kills 33 Registered with UFD 300 Friendly Fire -46 Cogmind --------- Core Integrity 0/400 Matter 43/300 Energy 280/280 System Corruption 1% Temperature Warning (319) Movement Core (1600) Ox31 Location -9/Scraptown Parts ------- > --- POWER (1) -------- Heavy Ion Engine > --- PROPULSION (3) --- (None) > --- UTILITY (3) ------ Huge Storage Unit > --- WEAPON (2) ------- Advanced Beam Cannon Advanced Beam Cannon > --- INVENTORY (25) --- Heavy Ion Engine Light Treads Light Treads Improved Treads Improved Treads Transport Network Coupler Light Armor Plating Light Armor Plating Hacking Suite Trap Extractor (4/4 Blade) Trap Extractor (4/4 Shock) Scrapoid Pod Improved EM Shotgun Improved EM Shotgun Grenade Launcher Rocket Launcher Datajack Plasma Cutter CPS Tube (1) Maul DRS Beacon (Ready) Peak State ------------ > --- POWER ------------ Heavy Ion Engine > --- PROPULSION ------- Light Treads Improved Treads Improved Treads > --- UTILITY ---------- Huge Storage Unit Light Armor Plating Light Armor Plating > --- WEAPON ----------- Improved EM Shotgun Scatter Rocket Array > --- INVENTORY -------- Heavy Ion Engine Light Treads Light Treads Improved Treads Improved Treads Transport Network Coupler Light Armor Plating Light Armor Plating Light Armor Plating Hacking Suite Trap Extractor Trap Extractor Scrapoid Pod Improved EM Shotgun Improved EM Shotgun Advanced Beam Cannon Advanced Beam Cannon Grenade Launcher Rocket Launcher Datajack Plasma Cutter CPS Tube Maul DRS Beacon [Rating: 26] Favorites ----------- Power Heavy Ion Engine Engine Heavy Ion Engine Power Core Light Nuclear Core Propulsion Light Treads Treads Light Treads Leg Aluminum Leg Wheel Compact Wheel Flight Unit Improved Flight Unit Utility Light Armor Plating Device Advanced Terrain Scanner Storage Huge Storage Unit Processor Targeting Computer Protection Light Armor Plating Weapon Datajack Energy Gun Medium Laser Energy Cannon Advanced Beam Cannon Ballistic Gun Light Assault Rifle Ballistic Cannon Light Cannon Launcher Rocket Launcher Special Weapon CPS Tube Impact Weapon Hammer Special Melee Weapon Datajack Build | -11 -10 -10 -9 -9 -9 -9 ------- Run | Yrd Mat Min Mat Sto Rec Scr Slots Evolved 2 | . . . 2 . . . Power . | . . . . . . . Propulsion 1 | . . . 1 . . . Utility 1 | . . . 1 . . . Weapon . | . . . . . . . Parts Attached 103 | . 28 3 16 29 9 18 Power 4 | . 1 1 1 1 . . Engine 3 | . 1 . 1 1 . . Core 1 | . . 1 . . . . Reactor . | . . . . . . . Propulsion 26 | . 6 1 7 7 . 5 Treads 23 | . 6 1 4 7 . 5 Leg . | . . . . . . . Wheel 2 | . . . 2 . . . Hover . | . . . . . . . Flight 1 | . . . 1 . . . Utility 28 | . 7 1 5 7 2 6 Device 11 | . 2 . 3 3 1 2 Storage 2 | . 1 1 . . . . Processor 2 | . 1 . 1 . . . Hackware . | . . . . . . . Protection 13 | . 3 . 1 4 1 4 Artifact . | . . . . . . . Weapon 45 | . 14 . 3 14 7 7 Energy Gun 5 | . . . . 3 . 2 Energy Cannon 10 | . . . 2 3 3 2 Ballistic Gun 1 | . 1 . . . . . Ballistic Cannon 12 | . 10 . . 2 . . Launcher 5 | . 2 . . 2 . 1 Special Weapon 1 | . . . . . . 1 Impact Weapon 4 | . . . . 1 2 1 Slashing Weapon . | . . . . . . . Piercing Weapon . | . . . . . . . Special Melee Weapon 7 | . 1 . 1 3 2 . Unidentified Prototypes 5 | . . . 2 3 . . Parts Lost 10 | . . . 1 1 . 8 Power . | . . . . . . . Propulsion 4 | . . . . 1 . 3 Utility 4 | . . . 1 . . 3 Weapon 2 | . . . . . . 2 Highest Loss Streak 8 | . . . 1 1 . 8 To Critical Strikes . | . . . . . . . Average Slot Usage (%) 99 | . 92 100 96 99 100 99 Engine 10 | . 14 3 3 11 11 11 Treads 30 | . 15 28 21 33 33 32 Leg 1 | . 11 . . . . . Device 5 | . 1 . 5 5 1 8 Storage 11 | . 14 14 11 11 11 11 Processor 2 | . 1 . 5 10 . . Protection 12 | . 5 14 8 6 20 13 Energy Cannon 4 | . . . 8 14 7 . Ballistic Cannon 3 | . 11 28 12 3 . . Impact Weapon 5 | . . . . . 5 10 Special Melee Weapon 6 | . 4 . . . 8 10 Peak Build Rating 26 | . 9 10 17 20 19 26 Average Rating 16 | . 7 9 13 17 16 18 On Entrance 11 | 6 6 8 10 15 18 15 Naked Turns . | . . . . . . . Heaviest Build 102 | 11 22 94 97 102 102 98 Greatest Support 66 | 20 40 40 60 60 60 66 Greatest Overweight (x) 6 | . . 2 6 1 1 1 Average Overweight (x) 1 | . . . 2 1 1 1 Largest Inventory Capacity 25 | . 10 25 25 25 25 25 Average Capacity 23 | . 9 18 25 25 25 25 Most Carried 25 | . 10 10 21 25 25 25 Average Carried 21 | . 7 9 16 23 24 24 Final Capacity 25 | 8 10 25 25 25 25 25 Final Carried 25 | 6 10 10 20 25 25 22 Class Distribution -------------------- 58% | Commander-Mutant 20% | Mutant 19% | Trapper-Mutant Dominant Class ---------------- Mutant | -10/Materials Mutant | -10/Mines Mutant | -9/Materials Trapper-Mutant | -9/Storage Commander-Mutant | -9/Recycling Commander-Mutant | -9/Scraptown Resources | -11 -10 -10 -9 -9 -9 -9 ----------- Run | Yrd Mat Min Mat Sto Rec Scr Matter Collected 1932 | 200 278 494 353 422 127 58 Remotely . | . . . . . . . Salvage Created 3321 | . 423 300 512 1412 545 129 Parts 205 | . 27 22 37 96 17 6 Haulers Intercepted 6 | . 1 . 1 4 . . Recyclers Shooed 6 | . 3 1 1 . 1 . Parts Field Recycled . | . . . . . . . Retrieved Matter . | . . . . . . . Parts Self-Destructed . | . . . . . . . Prevented . | . . . . . . . Kills | -11 -10 -10 -9 -9 -9 -9 ------- Run | Yrd Mat Min Mat Sto Rec Scr Combat Hostiles Destroyed 55 | . 11 8 7 22 4 3 Melee 1 | . 1 . . . . . Guns 5 | . . . . 5 . . Cannons 34 | . 3 8 7 12 4 . AOE 15 | . 7 . . 5 . 3 Classes Destroyed 12 | . 8 . 1 1 . 2 Worker 9 | . 2 2 . 5 . . Builder 5 | . 1 . 1 1 2 . Hauler 6 | . 1 . 1 4 . . Recycler 8 | . 3 . 2 1 2 . Operator 3 | . 1 . 1 1 . . Watcher 4 | . 1 . 2 1 . . Swarmer 9 | . 6 . . 3 . . Grunt 24 | . 5 8 3 7 1 . Brawler 1 | . . . . 1 . . Sentry 18 | . . . 4 11 3 . Scrapper 2 | . . . . . . 2 Elite 1 | . . . . . . 1 Best Kill Streak 6 | . 6 3 4 5 2 3 Combat Bots Only 4 | . 4 3 4 3 2 3 Max Kills in Single Turn 3 | . 3 1 1 3 2 1 Gunslinging . | . . . . . . . Exploded 3 | . 3 . . 2 . 1 Melee 1 | . 1 . . . . . Uniques/NPCs Destroyed . | . . . . . . . Combat | -11 -10 -10 -9 -9 -9 -9 -------- Run | Yrd Mat Min Mat Sto Rec Scr Hostile Shots Fired 236 | . 45 32 20 71 16 52 Missed 71 | . 20 9 5 22 7 8 Damage Taken 3206 | . 263 336 225 688 127 1567 Core 498 | . 24 48 33 98 32 263 Absorbed by Shields 304 | . . . . . 3 301 Regen/Repaired (Parts) 125 | . . . 125 . . . Core Remaining (%) 85 | 100 . 71 . . . . Volleys Fired 184 | . 32 28 29 72 11 12 Largest 2 | . 2 2 2 2 2 2 Hottest 136 | . 70 70 103 136 136 136 Shots Fired 335 | . 58 57 55 123 22 20 Gun 62 | . 16 . . 38 . 8 Cannon 261 | . 37 57 55 82 22 8 Launcher 11 | . 5 . . 3 . 3 Special 1 | . . . . . . 1 Kinetic 152 | . 45 57 32 18 . . Thermal 125 | . 8 . 23 64 22 8 Explosive 11 | . 5 . . 3 . 3 Electromagnetic 46 | . . . . 38 . 8 Robot Hit Streak 31 | . 8 6 20 31 9 10 Robot Miss Streak 6 | . 4 3 6 4 1 4 Penetration Max . | . . . . . . . Secondary Targets . | . . . . . . . Shots Hit Robots 266 | . 30 34 35 90 45 32 Core Hits 123 | . 23 13 16 47 5 19 Critical Kills . | . . . . . . . Critical Parts Destroyed 1 | . . . . . 1 . Critical Strikes 6 | . 4 1 . . 1 . Burn 2 | . 2 . . . . . Blast 3 | . 2 1 . . . . Smash 1 | . . . . . 1 . Melee Attacks 75 | . . . . 6 57 12 Impact 36 | . . . . 2 34 . Slashing . | . . . . . . . Piercing . | . . . . . . . Sneak Attacks 43 | . . . . 5 26 12 Combat Hostiles 13 | . . . . . 13 . Follow-up Attacks . | . . . . . . . Damage Inflicted 6131 | . 984 593 722 2161 753 918 Guns 742 | . 132 . . 568 . 42 Cannons 3291 | . 335 593 710 1113 377 163 Explosions 1626 | . 509 . . 404 . 713 Melee 411 | . . . . 48 363 . Ramming 61 | . 8 . 12 28 13 . Kinetic 1557 | . 392 593 361 211 . . Thermal 1987 | . 75 . 349 1023 377 163 Explosive 1505 | . 509 . . 283 . 713 Electromagnetic 610 | . . . . 568 . 42 Impact 411 | . . . . 48 363 . Slashing . | . . . . . . . Piercing . | . . . . . . . Highest Corruption 3 | . 3 3 . 1 1 1 Average Corruption 1 | . 2 3 . 1 1 1 Corruption Purged . | . . . . . . . Corruption Blocked . | . . . . . . . Effects 70 | . 9 16 . 13 32 . Message Errors 15 | . . 4 . 5 6 . Matter Fused 18 | . 6 4 . 2 6 . Heat Flow Errors 10 | . 1 1 . 3 5 . Energy Discharges 11 | . . 3 . 1 7 . Parts Fused 2 | . . 1 . . 1 . Data Loss (minor) 11 | . 2 2 . 2 5 . Data Loss (major) 1 | . . . . . 1 . Misfires 1 | . . 1 . . . . Alerts 1 | . . . . . 1 . Overload Shots . | . . . . . . . Overflow Damage 195 | . . 13 . 18 163 1 Projectiles 44 | . . 13 . . 30 1 Explosions 10 | . . . . 10 . . Melee 141 | . . . . 8 133 . Knockbacks 13 | . 3 6 1 2 1 . Impact 2 | . . . . 1 1 . Kinetic 11 | . 3 6 1 1 . . Secondary . | . . . . . . . Self-Inflicted Damage 36 | . . . 6 30 . . Shots 2 | . . . . 2 . . Rammed 12 | . 4 . 1 5 2 . Targets Rammed 14 | . 5 . 1 6 2 . Kicked . | . . . . . . . Crushed 2 | . 1 . . 1 . . Highest Temperature 442 | . 87 231 345 396 442 319 Average Temperature 91 | . 26 72 114 85 132 150 Received Heat Transfer 637 | . 42 192 54 243 61 45 Effects 8 | . . . 1 4 3 . Shutdowns 2 | . . . 1 1 . . Energy Bleed 2 | . . . . . 2 . Interference 3 | . . . . 3 . . Short Circuit 1 | . . . . . 1 . Siege Activations . | . . . . . . . Robots Corrupted 3 | . . . . 1 2 . Combat Hostiles . | . . . . . . . Parts Fried 9 | . . . . 3 6 . Impact Corruptions 6 | . . . . 1 5 . Robots Melted . | . . . . . . . Combat Hostiles . | . . . . . . . Parts Melted 6 | . . . 2 2 1 1 Heat Transferred 3591 | . 370 . 592 1704 629 296 Parts Sabotaged . | . . . . . . . Parts Stolen . | . . . . . . . Parts Stripped . | . . . . . . . Power Chain Reactions 2 | . . . . 2 . . Alert | -11 -10 -10 -9 -9 -9 -9 ------- Run | Yrd Mat Min Mat Sto Rec Scr Peak Influence 278 | . 262 278 243 265 168 . Initial 73 | . . 73 43 52 44 . Average 67 | . 95 153 113 65 32 . Maximum Alert Level 1 | . 1 1 1 1 1 . Low Security (%) 92 | . 85 68 81 97 99 . Level 1 7 | . 14 31 18 2 . . Level 2 . | . . . . . . . Level 3 . | . . . . . . . Level 4 . | . . . . . . . Level 5 . | . . . . . . . High Security . | . . . . . . . Max Security . | . . . . . . . Squads Dispatched 8 | . 3 . 2 3 . . Investigation 3 | . 2 . . 1 . . Extermination . | . . . . . . . Reinforcement 4 | . 1 . 2 1 . . Assault . | . . . . . . . Garrison 1 | . . . . 1 . . Intercept . | . . . . . . . Searches Triggered . | . . . . . . . Construction Impeded 1 | . . . 1 . . . Haulers Reinforced . | . . . . . . . Active Scanning Responses . | . . . . . . . Cargo Convoy Interrupts . | . . . . . . . Stealth | -11 -10 -10 -9 -9 -9 -9 --------- Run | Yrd Mat Min Mat Sto Rec Scr Distress Signals 10 | . 1 . 2 7 . . Communications Jammed . | . . . . . . . Distress Signals . | . . . . . . . Times Spotted 76 | . 18 9 11 27 5 6 Peak Tracking Total 5 | . 4 2 3 5 2 4 Tactical Retreats 1 | . . 1 . . . . Traps | -11 -10 -10 -9 -9 -9 -9 ------- Run | Yrd Mat Min Mat Sto Rec Scr Traps Triggered 9 | . 8 . . 1 . . Indirectly . | . . . . . . . Trap Hack Attempts 112 | . 44 . 37 31 . . Triggered 1 | . . . 1 . . . Disarmed . | . . . . . . . Reprogrammed 13 | . 5 . 4 4 . . Reused 4 | . . . . 4 . . Traps Extracted 17 | . 5 . 4 8 . . Installed 8 | . . . . 8 . . Triggered 4 | . . . . 4 . . Most Traps Carried 10 | . 5 5 9 10 8 8 Machines | -11 -10 -10 -9 -9 -9 -9 ---------- Run | Yrd Mat Min Mat Sto Rec Scr Machines Disabled 7 | . 1 1 . 4 1 . Max in Single Turn 1 | . 1 1 . 1 1 . Garrison Access 1 | . . . . 1 . . Machines Repaired . | . . . . . . . Machines Dismantled . | . . . . . . . Machines Sabotaged . | . . . . . . . Overloaded Fab Kills . | . . . . . . . Hacking | -11 -10 -10 -9 -9 -9 -9 --------- Run | Yrd Mat Min Mat Sto Rec Scr Machines Accessed 45 | . 2 . 7 13 15 8 Terminals 21 | . 1 . 5 9 6 . Fabricators . | . . . . . . . Repair Stations 2 | . . . 1 1 . . Recycling Units 11 | . 1 . . 2 8 . Scanalyzers 1 | . . . 1 . . . Garrison Access 1 | . . . . 1 . . Total Hacks 147 | . 4 . 26 35 31 51 Successful 105 | . 1 . 15 18 20 51 Failed 41 | . 3 . 10 17 11 . Catastrophic 5 | . . . 2 1 2 . Database Lockouts 1 | . . . 1 . . . Manual 63 | . 4 . 16 25 18 . Terminals 58 | . 3 . 16 24 15 . Fabricators . | . . . . . . . Repair Stations 4 | . . . 2 2 . . Recycling Units 19 | . 1 . . 7 11 . Scanalyzers 8 | . . . 8 . . . Garrison Access 2 | . . . . 2 . . Terminal Hacks 75 | . . . 3 10 11 51 Record 55 | . . . . . 5 50 Part Schematic 3 | . . . . 1 2 . Robot Schematic 2 | . . . . 1 1 . Robot Analysis 2 | . . . 2 . . . Open Door 3 | . . . . 3 . . Branch Access Points 2 | . . . 1 . 1 . Alert Level 1 | . . . . . 1 . Unreport Threat 3 | . . . . 3 . . Locate Traps 1 | . . . . 1 . . Hauler Manifests 1 | . . . . 1 . . Zone Layout 1 | . . . . . 1 . Derelict Proto ID Bank 1 | . . . . . . 1 Fabricator Hacks . | . . . . . . . Repair Station Hacks 2 | . . . 2 . . . Scan Component 1 | . . . 1 . . . Repair 1 | . . . 1 . . . Recycling Unit Hacks . | . . . . . . . Scanalyzer 6 | . . . 6 . . . Insert Component 3 | . . . 3 . . . Analyze 3 | . . . 3 . . . Garrison Access Hacks 1 | . . . . 1 . . Seal Access 1 | . . . . 1 . . Unauthorized Hacks 21 | . 1 . 4 7 9 . Terminals 7 | . . . 4 2 1 . Assimilate 1 | . . . 1 . . . Botnet 4 | . . . 2 2 . . Detonate 1 | . . . . . 1 . Operators 1 | . . . 1 . . . Fabricators . | . . . . . . . Repair Stations . | . . . . . . . Recycling Units 14 | . 1 . . 5 8 . Reject 2 | . . . . 2 . . Recyclers 1 | . . . . 1 . . Mask 2 | . . . . 2 . . Tunnel 9 | . 1 . . . 8 . Scanalyzers . | . . . . . . . Garrison Access . | . . . . . . . Data Cores Recovered 1 | . . . 1 . . . Used . | . . . . . . . Hacking Detections 22 | . 1 . 7 8 6 . Full Trace Events 3 | . 1 . . 1 1 . Feedback Events . | . . . . . . . Feedback Blocked . | . . . . . . . Robot Schematics Acquired 2 | . . . . 1 1 . Robots Built . | . . . . . . . Authchips . | . . . . . . . Time . | . . . . . . . Total Robot Build Rating . | . . . . . . . Part Schematics Acquired 6 | . . . 3 1 2 . Parts Built . | . . . . . . . Authchips . | . . . . . . . Time . | . . . . . . . Total Part Build Rating . | . . . . . . . Parts Repaired 1 | . . . 1 . . . Time 26 | . . . 26 . . . Parts Recycled . | . . . . . . . Recycled Matter . | . . . . . . . Retrieved Matter . | . . . . . . . Retrieved Components . | . . . . . . . Parts Scanalyzed 3 | . . . 3 . . . Part Schematics Acquired 3 | . . . 3 . . . Parts Damaged . | . . . . . . . Bothacking | -11 -10 -10 -9 -9 -9 -9 ------------ Run | Yrd Mat Min Mat Sto Rec Scr Used RIF Installer . | . . . . . . . Robots Hacked 16 | . . . . 2 3 11 Non-combat 5 | . . . . 2 2 1 Combat 11 | . . . . . 1 10 Robot Hacks Applied 16 | . . . . 2 3 11 parse_system 13 | . . . . 1 1 11 no_distress 2 | . . . . 1 1 . find_recycling 1 | . . . . . 1 . Relay Couplers Released . | . . . . . . . Fabnet Peak Effective % . | . . . . . . . Robots Rewired 11 | . . . . 1 10 . Allies Hacked . | . . . . . . . Hacks Repelled . | . . . . . . . Allies | -11 -10 -10 -9 -9 -9 -9 -------- Run | Yrd Mat Min Mat Sto Rec Scr Total Allies 11 | . . . . 1 10 . Largest Group 10 | . . . . 1 10 10 Highest-Rated Group 168 | . . . . 11 168 168 Highest-Rated Ally 34 | . . . . 11 34 34 Total Orders 5 | . . . . 5 . . DROP 1 | . . . . 1 . . PICKUP 1 | . . . . 1 . . EXPLORE 3 | . . . . 3 . . Ally Attacks 15 | . . . . . 4 11 Total Damage 467 | . . . . . 43 424 Kills 1 | . . . . . 1 . Allies Corrupted . | . . . . . . . Allies Melted . | . . . . . . . Intel | -11 -10 -10 -9 -9 -9 -9 ------- Run | Yrd Mat Min Mat Sto Rec Scr Robot Analysis Total 2 | . . . 2 . . . Derelict Logs Recovered 2 | . . 2 . . . . Drone Launches 19 | . . . . 19 . . Drone Recoveries 5 | . . . . 5 . . Exploration | -11 -10 -10 -9 -9 -9 -9 ------------- Run | Yrd Mat Min Mat Sto Rec Scr Turns Passed 16008 | . 1578 754 920 2565 4021 6170 Spaces Moved 5930 | 1 490 276 336 903 1486 2438 Core . | . . . . . . . Treads 5581 | . 375 276 103 903 1486 2438 Legs 116 | 1 115 . . . . . Wheels 233 | . . . 233 . . . Hover . | . . . . . . . Flight . | . . . . . . . Fastest Speed 120 | 120 120 160 130 240 240 240 Average Speed 228 | 120 150 233 176 240 240 240 Slowest Speed 320 | 120 160 320 240 240 240 240 Overloaded Moves . | . . . . . . . Propulsion Burnouts . | . . . . . . . Robots Hopped . | . . . . . . . Cave-ins Triggered . | . . . . . . . Exploration Rate (%) 62 | 2 53 62 29 96 99 95 Regions Visited 6 Branch Regions 4 Pre-discovered Areas 10 | . 1 1 . . 8 . Known Exits Taken 2 | . . 1 1 . . . Unknown Exits Taken 4 | 1 1 . . 1 1 . Scrap Searched 8 | . . 1 . . . 7 Spaces Dug 43 | . 8 . . 17 18 . Terrain Destroyed 87 | . 22 . . 36 18 11 Melee 19 | . . . . 1 18 . Projectile . | . . . . . . . AOE 68 | . 22 . . 35 . 11 Terrain Rammed . | . . . . . . . Walls Destroyed . | . . . . . . . Machines Disabled . | . . . . . . . Actions | -11 -10 -10 -9 -9 -9 -9 --------- Run | Yrd Mat Min Mat Sto Rec Scr Total 7945 | . 1264 334 605 1166 1843 2733 Wait 1392 | . 639 20 167 64 276 226 Move 5924 | . 489 275 335 902 1485 2438 Hop . | . . . . . . . Pick Up 51 | . 13 3 12 15 . 8 Fast Attach 30 | . 13 1 4 5 1 6 Attach 14 | . 1 1 6 3 . 3 Detach 12 | . 2 . 5 4 1 . Swap 59 | . 14 1 6 21 8 9 Drop 63 | . 12 5 3 22 2 19 Fire 184 | . 32 28 29 72 11 12 Melee 75 | . . . . 6 57 12 Ram 1 | . . . 1 . . . Kick . | . . . . . . . Crush 13 | . 5 . . 6 2 . Escape Stasis . | . . . . . . . Rewire . | . . . . . . . Trap 120 | . 44 . 37 39 . . Miscellaneous 7 | . . . . 7 . . Route ------- -11/Scrapyard -10/Materials (discovered 3 exits: *Mat x2 / [*Min]) -10/Mines (discovered 2 exits: *Mat x2) -9/Materials (discovered 4 exits: *Min x2 / *Sto x2) -9/Storage (discovered 2 exits: [*Mat] / *Rec) -9/Recycling (discovered 2 exits: [*Fac] / *Scr) -9/Scraptown (discovered 2 exits: [*Fac x2]) History --------- Turn | Location | Event 1 | -11/Scrapyard | Discovered new exit (range 0) 1 | -11/Scrapyard | Entered Materials 308 | -10/Materials | Build established: Mutant 759 | -10/Materials | Discovered new exit (range 17) 1042 | -10/Materials | Discovered new exit (range 15) 1435 | -10/Materials | Discovered new exit (range 9) 1579 | -10/Materials | Entered Mines 1685 | -10/Mines | Received a Rocket Launcher from a helpful Derelict 2098 | -10/Mines | Identified exit to Materials 2185 | -10/Mines | Learned location of Zion (-7) 2255 | -10/Mines | Discovered exit to Materials (range 7) 2333 | -10/Mines | Entered Materials 2333 | -9/Materials | Evolved 2 slots: Propulsion x1, Utility x1 2523 | -9/Materials | Identified exit to Mines 2523 | -9/Materials | Identified exit to Storage 2682 | -9/Materials | Repaired Lgt. Treads 2738 | -9/Materials | Central database locked down 3253 | -9/Materials | Entered Storage 3425 | -9/Storage | Lost 5 allies 3660 | -9/Storage | Build established: Trapper-Mutant 3775 | -9/Storage | Used back door to open Recycling access 3775 | -9/Storage | Discovered new exit (range 5) 3934 | -9/Storage | Discovered new exit (range 16) 3973 | -9/Storage | Found Prototype Launcher 3973 | -9/Storage | Identified Scatter Rocket Array 4697 | -9/Storage | Garrison activated, responded to threat 5818 | -9/Storage | Entered Recycling 5819 | -9/Recycling | Met a Zionite searching for Scraptown 6564 | -9/Recycling | Discovered new exit (range 8) 6572 | -9/Recycling | Build established: Scavenger-Mutant 6950 | -9/Recycling | Build established: Commander-Mutant 9732 | -9/Recycling | Scanned before Scraplab entrance 9767 | -9/Recycling | Entered Scraplab 9817 | -9/Recycling | Discovered new exit (range 2) 9839 | -9/Recycling | Entered Scraptown 9839 | -9/Scraptown | Accompanied by 10 allies 9844 | -9/Scraptown | System corruption cleaned by C-Scrubber 10728 | -9/Scraptown | Discovered new exit (range 5) 10950 | -9/Scraptown | Visited Assassins FH 11041 | -9/Scraptown | Visited SPCMW 11178 | -9/Scraptown | Visited Cave Peace 11264 | -9/Scraptown | Visited Red Mages 11377 | -9/Scraptown | Visited Cyclists 11493 | -9/Scraptown | Heard Great Nut preacher, LISTEN AND RECITE! 11970 | -9/Scraptown | Visited UFD Registry 11973 | -9/Scraptown | Registered with UFD as "Phasenuts" 12148 | -9/Scraptown | Entered Cyclist Reading Room 12246 | -9/Scraptown | Visited The Evicted 13515 | -9/Scraptown | Visited DA-N13 Charitable Foundation 13536 | -9/Scraptown | Found DCF Scrap (28 items) 13594 | -9/Scraptown | Visited Derelict Rescue Squad 13621 | -9/Scraptown | Found DRS Beacon 13636 | -9/Scraptown | Found DRS Beacon 13697 | -9/Scraptown | Visited Chapter 10 13831 | -9/Scraptown | Visited LU-1G1's Boring Crew 14011 | -9/Scraptown | Visited Observation Area 14122 | -9/Scraptown | Visited Scrap Suit Storage 14158 | -9/Scraptown | Visited Science Guys 14576 | -9/Scraptown | Visited Scrapoid Pod Storage 14589 | -9/Scraptown | Found Scrapoid Pod 14669 | -9/Scraptown | Visited Science Testing Area 14707 | -9/Scraptown | Visited Supply Room 15290 | -9/Scraptown | Discovered new exit (range 3) 15964 | -9/Scraptown | Attacked by Scraptown defenders 15990 | -9/Scraptown | Core integrity fell below 50% 16004 | -9/Scraptown | Core integrity fell below 20% 16009 | -9/Scraptown | Destroyed by Triborg with Siege Cannon Last Messages --------------- 15995_ Penetrated by Siege Slug. 15995_ Lgt. Treads destroyed. 15995_ Critical hit (Blast). 15997_ Penetrated by Siege Slug. 15997_ Lgt. Armor Plating destroyed. 15999_ Penetrated by Siege Slug. 16001_ Siege Slug penetrates Savior 2a. 16001_ Lgt. Armor Plating destroyed. 16003_ Penetrated by Siege Slug. 16003_ Imp. Treads destroyed. 16003_ Savior 2a suffers critical hit (Blast). 16003_ Savior 2a destroyed. 16003_ Critical hit (Impale). 16004_ Acquired 3 matter. 16005_ Penetrated by Siege Slug. 16007_ The unstable cave ceiling collapses. 16007_ Destroyed Lgt. Ion Engine. 16007_ Penetrated by Siege Slug. 16008_ Imp. Treads destroyed. 16009_ Penetrated by Siege Slug. Map ----- +----------------------------------------------------+ | ################# #???#####" | | #???????????????# #???#"""" """"""" | | #???????????????# #???#"""" """"""" | | ############????# #???#"""" ""##### | | # """#" X "#????# #??##"""" ""# | | # ## "#????# #??##"""" ""# | | # X##????# ###?#"""" ""# " | | # ## "#????# ""#"#"""" ""# "" | | # #" """#????# """"#"""" ""# " | | # #######????# ""#######" "" | | # #??????????# ###???#?#" "" | | # #??????????# #########" ""# " | | #?????????? = ""# "" | | # "X"#????????# =% ""# " | | ######????????? # p ""# | | #??????????????? ""# | | ################# TT = ""##### | | TT ! """"""" | | """"""" | | %! | | | | | | %#""""#" | | =#????#" | | x %= #????#"""""" """""" | | ############# #########=@!%####????####### ###### | | ""#???# ??????#%%%[#??????????#" "#? | | " """#???#" ????##%% #??????????#""! "#? | | ""#???#" "????#% %#??????????#"! = ""## | | ""#???#"" " ??# i #??????????#"!! ==""## | | " "#???#""" " ??# #??????????#"==]] ="## | | "#???#"" " ??# %%#??????????#""=]]"""## | | """ ""#???#" "##??# #??????????########### | | " """"#?????? " "???# #????????????????????# | | " ""#??????"""""#???# #????????????????????# | | """"""""#??????###?#??#?# #????????????????????? | | #########???????????????# #????????????????????? | | ?????????????############ ;????????????????????? | | ?????????????#""""""""""" ;????################# | | ?????????????#""""" """"" #????# ##"""## | | ???????#######"""" " "" #????# """"""" ## ""## | | ???????# #????# """"""" | | ##??#### #####"" "" "" " #????# """"""" | | ""??#""" "#??#""""""""""" #????# """"""" | | ""?#""" "#??#""""""""""" #????# """"""" ##"""## | | "?#""" "#??############ #????# ##"""## | | ""##"" "#?############# #????################# | | ""##"" "#?#"""""""""""# #????????????????????? | | ""##" "#?#""]|[=!/! "# #????????????????????? | | ""##" = "#?#""!!*]! "# #????????????????????? | +----------------------------------------------------+ Best States ------------- Heat Dissipation 38 Energy Generation 14 Energy Capacity 280 Matter Stores 300 Matter Capacity 300 Sight Range 18 Terrain Scan Range 20 Terrain Scan Density 10 Armor Coverage 300 Evasion (%) 55 Targeting Accuracy 5 Recoil Reduction 3 Trap Extractor Capacity 4 Item Schematics ----------------- Lgt. Treads | -9/Materials | Scanalyzed Datajack | -9/Materials | Scanalyzed Plasma Cutter | -9/Materials | Scanalyzed Huge Storage Unit | -9/Storage | Hacked Imp. Hover Unit | -9/Recycling | Hacked Med. Storage Unit | -9/Recycling | Hacked Robot Schematics ------------------ M-13 Machinist | -9/Storage | Hacked K-01 Serf | -9/Recycling | Hacked Fabricated ------------ Nothing Alien Tech Used ----------------- None Achievements -------------- None Challenges ------------ None Game ------ Seed ArchitectPitchforkField Manual? 0 Play Time 01:26:18 Cumulative 283.6 hours Start 2024.08.15 @ 05:21:52 End 2024.08.15 @ 06:59:21 Sessions 1 Manual Loads 0 Difficulty Rogue Special Mode None Game No. 369 Rogue 369 Adventurer 0 Explorer 0 Win Type - Total 9 Types 8/0/0/1/0/0/0/0/0 Lore% 62 Gallery% 84 Achievement% 71 Wizard Run 0 Options --------- Layout 0 ASCII 0 Keyboard 0 Movement Numpad Keybinds 0 Fullscreen 2 Font 18/SmallcapsGlow Map View 76x50 Zoom Use 0% Tactical HUD 1 Map Filters NONE Filters NONE Steam 1 RUN: 1687b7b9-b516-40c5-9c22-1f75cfb67272